bitfinex/quotes_ETHUSD_20220202
["timestamp","ask_amount","ask_price","bid_price","bid_amount"]
[1643793339721,1.53040299,2765.5,2765.0,1.1136204]
[1643793340123,1.53040299,2765.5,2765.0,0.8136204]
[1643793340526,3.50920989,2765.5,2764.7,2.1079579]
[1643793340730,3.50920989,2765.5,2764.7,0.3]
[1643793340731,1.53040299,2765.4,2764.7,0.3]
[1643793340929,0.88973569,2765.0,2764.7,0.3]
[1643793341128,1.97832939,2764.9,2764.3,0.1807]
[1643793341324,1.88882597,2764.9,2764.3,0.1807]
[1643793341524,0.88973569,2765.0,2764.3,0.1807]
[1643793341724,0.33998637,2764.5,2764.3,0.1807]
[1643793342560,0.88973569,2765.0,2764.3,0.1807]
[1643793342764,1.53063079,2764.9,2764.3,0.1807]
[1643793343764,0.35277866,2764.4,2764.3,0.1807]
[1643793344365,0.35277866,2764.4,2764.2,3.506]
[1643793344366,0.35277866,2764.4,2764.2,3.6867]
[1643793344964,0.88973569,2765.0,2764.2,3.6867]
[1643793345164,1.53059041,2764.9,2764.2,3.6867]
[1643793345809,3.40945833,2764.9,2764.2,3.6867]
[1643793346112,0.88973569,2765.0,2764.2,3.6867]
[1643793346113,0.39670356,2764.5,2764.2,3.6867]
[1643793346308,0.88973569,2765.0,2764.2,4.5005531]
[1643793346517,1.53058456,2764.9,2764.2,4.5005531]
[1643793347515,0.31822511,2764.6,2764.2,4.5005531]
[1643793347918,1.95614035,2764.5,2764.2,3.6867]
[1643793348120,1.95614035,2764.5,2763.9,0.38819997]
[1643793348121,1.53080197,2764.4,2764.0,0.1807]
[1643793348318,2.08945686,2764.3,2763.4,0.1807]
[1643793348519,1.53080197,2764.2,2763.3,7.272806]
[1643793348724,1.93922756,2764.1,2763.3,7.272806]
[1643793348918,0.32630867,2763.8,2763.4,0.8141109]
[1643793349117,2.07488897,2764.3,2763.4,0.8141109]
[1643793349317,1.53092097,2764.2,2763.4,0.8141109]
[1643793349756,1.89329608,2764.1,2763.4,0.8141109]
[1643793349957,1.89329608,2764.1,2763.4,1.1141109]
[1643793350157,0.36128484,2764.0,2763.4,1.1141109]
[1643793350761,0.36128484,2764.0,2763.3,1.397]
[1643793351760,2.07142857,2764.2,2763.5,0.71838037]
[1643793351959,2.23770902,2764.4,2763.5,0.71838037]
[1643793352162,1.5309007,2764.3,2763.5,0.71838037]
[1643793352862,0.38586238,2764.1,2763.4,1.0]
[1643793353064,0.38586238,2764.1,2763.3,10.167]
[1643793353711,0.38586238,2764.1,2763.3,11.37143]
[1643793354306,0.38586238,2764.1,2763.5,0.90442]
[1643793354709,0.90596636,2764.5,2763.3,9.57784814]
[1643793354908,0.90596636,2764.5,2763.4,1.3]
[1643793354909,1.53087281,2764.4,2763.4,1.3]
[1643793356209,0.38522799,2764.2,2763.5,0.40120278]
[1643793356710,0.1809,2764.7,2763.5,0.40120278]
[1643793356911,0.1809,2764.7,2763.6,1.1678]
[1643793357167,1.53086447,2764.6,2763.6,1.4678]
[1643793357367,0.1807,2764.5,2763.6,1.4678]
[1643793357565,1.90050035,2764.4,2763.6,1.4678]
[1643793357764,1.53086447,2764.3,2763.6,1.4678]
[1643793358162,1.53086447,2764.3,2763.6,2.4678]
[1643793359867,1.53086447,2764.3,2763.6,1.1678]
[1643793359868,1.52986079,2764.3,2763.6,1.1678]
[1643793360918,1.52986079,2764.3,2763.7,0.39170206]
[1643793361118,1.52986079,2764.3,2763.6,1.1678]
[1643793361922,1.71076079,2764.3,2763.6,1.1678]
[1643793362126,0.1809,2764.3,2763.6,1.1678]
[1643793364325,0.36963588,2764.4,2763.6,1.1678]
[1643793367079,0.38250099,2763.9,2763.3,0.1809]
[1643793367292,0.38250099,2763.9,2763.2,1.4118]
[1643793367485,0.38250099,2763.9,2763.2,1.2309]
[1643793367681,0.38250099,2763.9,2763.1,0.1809]
[1643793368517,1.15899338,2763.8,2763.1,0.1809]
[1643793368735,1.15899338,2763.8,2763.0,3.1445]
[1643793368736,0.70392,2763.7,2763.0,0.1809]
[1643793368932,0.70392,2763.7,2762.5,0.1809]
[1643793368933,1.30612338,2763.6,2762.5,0.1809]
[1643793369124,0.7039,2763.5,2762.2,0.1809]
[1643793369331,1.52577808,2763.4,2762.2,0.1809]
[1643793369525,0.523,2763.3,2762.2,0.1809]
[1643793370027,0.18092,2763.2,2762.2,0.1809]
[1643793371227,0.36959507,2762.9,2762.2,0.1809]
[1643793371425,1.0859,2763.3,2762.2,0.1809]
[1643793371628,0.48092,2763.4,2762.2,2.20431597]
[1643793372061,0.1809,2763.5,2762.3,7.47]
[1643793372270,0.1809,2763.5,2762.5,0.90474]
[1643793372464,0.1809,2763.5,2762.8,0.38614501]
[1643793372465,0.34770008,2763.5,2762.8,0.38614501]
[1643793372666,0.34770008,2763.5,2762.5,1.20474]
[1643793372867,0.34770008,2763.5,2762.5,0.90474]
[1643793373467,0.34770008,2763.5,2762.4,3.41301217]
[1643793373667,0.34770008,2763.5,2762.8,0.42232727]
[1643793373869,0.1809,2763.7,2763.0,0.82660579]
[1643793374669,1.8095082,2764.0,2763.0,0.82660579]
[1643793374670,0.1809,2763.9,2763.0,0.82660579]
[1643793375269,0.32997419,2763.7,2763.0,0.82660579]
[1643793376013,0.32997419,2763.7,2763.0,0.82568424]
[1643793377018,0.51089419,2763.7,2762.7,6.4614]
[1643793377417,0.69179419,2763.7,2762.7,6.4614]
[1643793377819,0.69179419,2763.7,2762.6,0.1809]
[1643793378025,0.4180788,2763.1,2762.4,1.72145597]
[1643793378220,0.4180788,2763.1,2762.4,1.2193]
[1643793378421,0.4180788,2763.1,2762.2,3.4307]
[1643793379420,0.4180788,2763.1,2762.2,4.18117657]
[1643793380174,0.4180788,2763.1,2762.2,3.4307]
[1643793380875,0.4180788,2763.1,2762.2,0.1809]
[1643793380876,1.22125481,2763.0,2762.2,0.1809]
[1643793381076,1.22125481,2763.0,2761.7,7.47]
[1643793381077,0.36182,2762.9,2761.8,3.2858]
[1643793381284,0.36182,2762.9,2761.7,0.1809]
[1643793381285,1.4281578,2762.8,2761.7,0.1809]
[1643793381474,1.4281578,2762.8,2761.6,0.1809]
[1643793381475,0.18092,2762.7,2761.6,0.1809]
[1643793381679,0.18092,2762.7,2761.8,0.36703769]
[1643793381680,0.32972641,2762.5,2761.8,0.36703769]
[1643793382076,0.32972641,2762.5,2761.6,0.1809]
[1643793382883,0.32972641,2762.5,2761.8,0.78238203]
[1643793386727,0.1809,2762.8,2761.9,1.99922839]
[1643793386921,0.1809,2763.1,2761.9,1.99922839]
[1643793387170,0.1809,2763.1,2762.0,0.1809]
[1643793387774,4.92158375,2763.3,2762.0,0.1809]
[1643793387775,0.38516767,2762.9,2762.2,0.41507619]
[1643793388572,0.1809,2763.2,2762.2,0.41507619]
[1643793389374,0.1809,2763.3,2762.2,0.41507619]
[1643793390177,0.37636466,2763.2,2762.2,0.41507619]
[1643793390377,0.1809,2763.1,2762.4,0.92137414]
[1643793390575,0.1809,2763.1,2762.2,0.41507619]
[1643793391512,0.1809,2763.1,2762.0,0.1809]
[1643793391711,0.1809,2763.1,2762.1,0.82103997]
[1643793392715,0.1809,2763.1,2762.1,1.18786047]
[1643793394561,0.1809,2763.1,2762.2,2.00830436]
[1643793394862,0.18092,2763.2,2762.2,3.08912869]
[1643793395068,0.4809,2763.4,2762.3,0.1809]
[1643793395262,0.1809,2763.5,2762.3,0.1809]
[1643793395465,1.53150137,2763.4,2762.3,1.4285]
[1643793395762,0.38030585,2763.4,2762.6,0.43716492]
[1643793395961,0.38030585,2763.4,2762.6,1.20388639]
[1643793396162,0.38030585,2763.4,2762.6,0.76672147]
[1643793396364,1.53155532,2763.3,2762.6,0.76672147]
[1643793396566,1.53021451,2763.3,2762.6,0.76672147]
[1643793396765,1.83021451,2763.3,2762.6,0.76672147]
[1643793396967,0.3,2763.3,2762.3,1.4285]
[1643793397374,0.38030585,2763.4,2762.3,1.4285]
[1643793397375,0.68030585,2763.4,2762.3,1.4285]
[1643793397577,2.66450655,2763.3,2762.3,1.2476]
[1643793397772,2.96450655,2763.3,2762.3,1.2476]
[1643793398171,3.90220587,2763.3,2762.3,1.2476]
[1643793399015,0.34009083,2762.7,2762.2,6.1987]
[1643793399212,1.95825533,2762.6,2762.2,6.1987]
[1643793399412,1.95825533,2762.6,2761.9,0.1809]
[1643793399715,1.95825533,2762.6,2761.8,1.236]
[1643793399716,0.3,2762.5,2761.8,1.236]
[1643793399912,1.91008276,2762.4,2761.8,1.236]
[1643793400115,1.93461829,2762.4,2761.7,0.1809]
[1643793400511,0.3,2762.5,2761.7,0.1809]
[1643793400713,1.9059925,2762.4,2761.7,0.1809]
[1643793400913,0.3,2762.5,2761.7,0.1809]
[1643793401811,1.87486218,2762.6,2761.7,0.1809]
[1643793402063,1.16309083,2762.7,2761.7,0.1809]
[1643793402267,1.88771735,2762.6,2761.7,0.1809]
[1643793403170,1.16309083,2762.7,2761.7,0.1809]
[1643793403970,1.91878076,2762.6,2761.7,0.1809]
[1643793404370,0.39248487,2762.2,2761.7,0.1809]
[1643793405273,1.91878076,2762.6,2761.7,0.1809]
[1643793405670,0.3,2762.7,2761.7,0.1809]
[1643793405911,2.27889485,2762.8,2761.7,0.1809]
[1643793406710,0.3556152,2762.5,2761.7,0.1809]
[1643793409964,2.27889485,2762.8,2761.7,0.1809]
[1643793410164,2.57889485,2762.8,2761.7,0.1809]
[1643793410370,1.97889485,2762.8,2761.7,0.1809]
[1643793410767,2.27889485,2762.8,2761.7,0.1809]
[1643793411369,2.27889485,2762.8,2761.6,1.05584041]
[1643793411370,0.44846314,2762.5,2761.6,1.05584041]
[1643793413174,1.89735585,2762.4,2761.6,0.1809]
[1643793413420,1.89735585,2762.4,2761.5,4.04841238]
[1643793413621,1.89735585,2762.4,2761.5,3.4785]
[1643793414423,1.89735585,2762.4,2761.7,0.69884567]
[1643793414823,0.3,2762.4,2761.7,0.69884567]
[1643793415021,0.1809,2762.5,2761.7,0.69884567]
[1643793416023,0.41016497,2762.4,2761.7,0.69884567]
[1643793416424,0.1809,2762.5,2761.7,0.69884567]
[1643793417575,0.55134993,2762.5,2761.7,0.69884567]
[1643793417875,2.78404448,2762.4,2761.7,0.87974567]
[1643793418074,2.78404448,2762.4,2761.7,0.69884567]
[1643793418475,2.75443594,2762.4,2761.7,0.69884567]
[1643793418675,0.9051833,2762.4,2761.7,0.69884567]
[1643793419076,0.9051833,2762.4,2761.6,0.1809]
[1643793419281,2.76363245,2762.4,2761.6,0.1809]
[1643793420277,2.76363245,2762.4,2761.7,0.91242197]
[1643793420679,0.9051833,2762.4,2761.7,0.91242197]
[1643793420920,2.76211545,2762.4,2761.7,0.91242197]
[1643793421115,0.9051833,2762.4,2761.7,0.91242197]
[1643793421317,2.75990306,2762.4,2761.7,0.91242197]
[1643793421517,2.78592069,2762.4,2761.5,3.4785]
[1643793422319,2.42092069,2762.4,2761.5,3.4785]
[1643793422519,2.42092069,2762.4,2761.7,0.85374209]
[1643793422918,2.42092069,2762.4,2761.5,3.4785]
[1643793423120,2.72092069,2762.4,2761.5,3.4785]
[1643793423920,0.41069103,2762.0,2761.5,4.20094091]
[1643793427270,0.41069103,2762.0,2761.5,4.02004091]
[1643793428922,1.85443037,2761.9,2761.5,3.2976]
[1643793429131,1.85443037,2761.9,2760.8,1.19303422]
[1643793429132,2.69283037,2761.9,2761.2,0.1809]
[1643793429323,3.29283037,2761.9,2761.0,0.25]
[1643793429519,3.29283037,2761.9,2760.8,0.1809]
[1643793429718,3.29283037,2761.9,2760.7,7.6509]
[1643793429719,3.42550553,2761.9,2760.7,7.6509]
[1643793429919,0.37603283,2761.4,2760.9,0.68772351]
[1643793431122,0.9054304,2761.7,2760.9,0.68772351]
[1643793431328,0.3,2761.6,2760.9,0.68772351]
[1643793431723,1.20545,2761.6,2760.9,0.68772351]
[1643793432776,1.55252285,2761.6,2760.7,7.6509]
[1643793433176,0.9054852,2761.4,2760.7,7.6509]
[1643793433775,0.9054852,2761.4,2760.7,8.51124733]
[1643793434375,0.9054852,2761.4,2760.7,8.33034733]
[1643793439978,0.9054852,2761.4,2760.7,7.47]
[1643793440577,1.2054852,2761.4,2760.7,7.47]
[1643793441179,0.9055585,2761.3,2760.7,7.47]
[1643793442583,0.9055585,2761.3,2760.6,4.5646]
[1643793442584,2.95098106,2761.3,2760.6,4.5646]
[1643793442787,2.13258971,2761.2,2760.3,0.1809]
[1643793442985,2.96135129,2761.1,2760.2,12.3495]
[1643793443187,1.4287145,2761.1,2760.2,12.3495]
[1643793443420,0.33106063,2760.4,2760.2,12.3495]
[1643793443626,0.523,2760.9,2760.2,8.7104]
[1643793443823,0.1811,2760.8,2760.2,8.7104]
[1643793444024,0.9057761,2760.6,2760.2,7.47]
[1643793444824,0.3,2760.5,2760.2,7.47]
[1643793445122,0.73077296,2760.5,2760.2,7.47]
[1643793445324,1.63667296,2760.5,2760.2,7.47]
[1643793445723,3.44850836,2760.5,2760.2,7.47]
[1643793447781,2.28131378,2760.4,2760.2,7.47]
[1643793447977,2.80431378,2760.4,2760.2,7.47]
[1643793448178,4.00019071,2760.3,2759.7,7.47]
[1643793448380,5.42921071,2760.3,2759.7,7.47]
[1643793448581,0.9060115,2760.1,2759.7,7.47]
[1643793448782,1.98834452,2760.0,2759.7,7.47]
[1643793449782,0.9060115,2760.1,2759.7,7.47]
[1643793449983,1.86316181,2760.0,2759.7,7.47]
[1643793450182,0.9060115,2760.1,2759.7,7.47]
[1643793450382,1.87364283,2760.0,2759.7,7.47]
[1643793450838,1.86437847,2760.0,2759.7,7.47]
[1643793451536,1.8120215,2760.1,2759.7,7.47]
[1643793452440,0.9060115,2760.1,2759.7,7.47]
[1643793452737,0.3,2760.3,2759.7,7.47]
[1643793453139,2.16917293,2760.3,2759.7,7.47]
[1643793453940,0.3,2760.3,2759.7,7.47]
[1643793454141,1.20591,2760.4,2759.7,7.47]
[1643793454340,0.9059446,2760.1,2759.7,7.47]
[1643793454783,1.2059446,2760.1,2759.7,7.47]
[1643793454982,0.3,2760.1,2759.7,7.47]
[1643793455179,1.81184,2760.4,2759.7,7.47]
[1643793455386,2.11184,2760.4,2759.7,7.47]
[1643793456190,3.0177228,2760.4,2759.7,7.47]
[1643793457184,3.3177228,2760.4,2759.7,7.47]
[1643793461327,2.7177228,2760.4,2759.7,7.47]
[1643793461529,0.9057952,2760.7,2759.7,9.46120062]
[1643793461726,3.6230977,2761.0,2759.7,9.46120062]
[1643793461727,1.8114977,2761.0,2759.7,9.46120062]
[1643793461927,0.36202,2761.1,2759.8,1.1407]
[1643793462378,0.36202,2761.1,2759.9,1.97770453]
[1643793462575,0.43762836,2761.0,2760.3,0.93141118]
[1643793462881,0.3,2760.7,2760.3,0.93141118]
[1643793463678,0.3,2760.7,2760.1,1.2377]
[1643793465081,1.2057475,2760.7,2760.1,1.97597897]
[1643793467236,0.3,2760.7,2760.1,1.97597897]
[1643793468147,0.9056732,2761.0,2760.2,0.1811]
[1643793469038,0.33891797,2760.9,2760.1,2.16965378]
[1643793469567,1.24461797,2760.9,2760.1,2.16965378]
[1643793469768,0.3,2760.7,2760.1,2.16965378]
[1643793469968,0.3,2760.7,2760.1,1.98855378]
[1643793471672,2.173435,2761.2,2760.2,1.96824789]
[1643793471673,0.1811,2761.2,2760.2,1.96824789]
[1643793471874,1.99222,2761.8,2760.2,2.97857936]
[1643793471875,2.7165345,2761.6,2760.2,2.97857936]
[1643793472072,0.9054945,2761.6,2760.2,4.78941936]
[1643793472672,0.9054945,2761.6,2760.9,1.30373188]
[1643793473435,1.23673775,2762.1,2761.0,2.02610759]
[1643793473436,0.1809,2762.0,2761.0,2.02610759]
[1643793473632,0.1809,2762.0,2761.0,2.34520756]
[1643793473633,1.53237311,2761.9,2761.0,2.34520756]
[1643793473829,0.1809,2762.0,2761.0,2.34520756]
[1643793473830,0.1809,2762.4,2761.0,3.34520756]
[1643793474028,1.53229162,2762.3,2761.0,7.69950756]
[1643793474231,0.39454966,2762.1,2761.0,5.57865997]
[1643793474431,1.53229162,2762.0,2761.0,5.57865997]
[1643793474627,1.83229162,2762.0,2761.0,5.57865997]
[1643793474829,1.53229162,2761.9,2761.0,4.67339997]
[1643793475631,1.53229162,2761.9,2761.0,4.49249997]
[1643793475831,1.53229162,2761.9,2761.0,0.13819997]
[1643793475832,0.9054174,2761.7,2761.0,0.13819997]
[1643793476036,1.53229162,2761.6,2761.0,0.13819997]
[1643793476231,1.83125873,2761.6,2761.0,0.13819997]
[1643793476531,1.53229162,2761.5,2761.0,0.13819997]
[1643793476730,1.53229162,2761.5,2761.0,0.81179634]
[1643793476929,2.43777162,2761.5,2761.0,0.81179634]
[1643793477167,0.90548,2761.5,2761.0,0.81179634]
[1643793477567,0.90548,2761.5,2761.0,0.13819997]
[1643793477968,9.86180003,2761.0,2760.8,3.0737]
[1643793478168,9.86180003,2761.0,2760.7,0.1809]
[1643793479370,0.35696672,2760.8,2760.7,0.1809]
[1643793479569,0.35696672,2760.8,2760.2,0.1811]
[1643793480172,10.16180003,2761.0,2760.2,0.1811]
[1643793483026,10.16180003,2761.0,2760.3,0.90548]
[1643793485871,9.86180003,2761.0,2760.3,0.90548]
[1643793486273,9.86180003,2761.0,2760.3,2.9015243]
[1643793487180,9.86180003,2761.0,2760.9,0.39705525]
[1643793487878,9.86180003,2761.0,2760.7,0.93774241]
[1643793488078,9.86180003,2761.0,2760.6,0.90541]
[1643793488331,9.86180003,2761.0,2760.4,1.2187]
[1643793489330,9.86180003,2761.0,2760.5,0.74196052]
[1643793490542,9.86180003,2761.0,2760.7,0.336562]
[1643793491331,9.86180003,2761.0,2760.7,0.33568238]
[1643793491932,9.86180003,2761.0,2760.5,0.74196052]
[1643793492777,10.16180003,2761.0,2760.5,0.74196052]
[1643793493174,10.16180003,2761.0,2760.5,1.0832341]
[1643793493475,10.16180003,2761.0,2760.5,0.34127358]
[1643793493973,11.06737003,2761.0,2760.5,0.34127358]
[1643793495675,11.06737003,2761.0,2760.5,1.01632568]
[1643793496118,11.06737003,2761.0,2760.5,0.34127358]
[1643793496320,11.06737003,2761.0,2760.4,1.2187]
[1643793497527,11.06737003,2761.0,2760.5,0.34631063]
[1643793500685,10.16180003,2761.0,2760.5,0.34631063]
[1643793500886,10.16180003,2761.0,2760.9,0.81042918]
[1643793501085,11.39453686,2761.0,2760.9,0.81042918]
[1643793501289,9.86180003,2761.0,2760.9,0.81042918]
[1643793502093,6.82990003,2761.0,2760.9,5.26042918]
[1643793502292,6.82990003,2761.0,2760.9,2.85788016]
[1643793502590,6.82990003,2761.0,2760.9,1.81042918]
[1643793502790,1.79620003,2761.0,2760.9,0.81042918]
[1643793503622,1.79620003,2761.0,2760.9,0.99133918]
[1643793503828,1.79620003,2761.0,2760.9,0.81042918]
[1643793506128,1.53270485,2761.0,2760.6,0.1809]
[1643793506328,0.1811,2761.5,2760.4,2.12418]
[1643793506527,1.53272273,2761.4,2760.4,2.12418]
[1643793507065,2.43819433,2761.4,2760.4,2.12418]
[1643793507276,1.83272273,2761.3,2760.4,2.12418]
[1643793507471,1.53272273,2761.2,2760.7,0.34937735]
[1643793508988,1.53272273,2761.2,2760.4,2.12418]
[1643793509171,0.90553,2761.1,2760.4,2.12418]
[1643793509371,1.53272273,2761.0,2760.4,2.12418]
[1643793509776,1.53272273,2761.0,2760.4,1.2187]
[1643793509973,1.83272273,2761.0,2760.4,1.2187]
[1643793510174,1.53272273,2760.9,2760.4,1.2187]
[1643793510919,1.53272273,2760.9,2760.3,1.34835908]
[1643793516781,1.53272273,2760.9,2760.8,0.32451455]
[1643793516982,1.53272273,2760.9,2760.8,1.05418317]
[1643793518923,1.53272273,2761.3,2760.8,4.02170216]
[1643793519119,2.45281431,2761.6,2760.8,1.95945317]
[1643793519120,1.53264294,2761.2,2760.8,1.95945317]
[1643793519319,1.53264294,2761.1,2760.8,1.95945317]
[1643793519619,2.45281431,2761.6,2760.8,3.95329932]
[1643793519821,1.53263376,2761.5,2760.8,1.95945317]
[1643793520032,1.53263376,2761.4,2760.8,3.92798463]
[1643793520222,1.53263376,2761.3,2760.8,1.95945317]
[1643793520423,1.53263376,2761.2,2760.8,1.95945317]
[1643793520621,1.53263376,2761.1,2760.8,1.95945317]
[1643793520822,1.53263376,2761.6,2760.8,3.92872259]
[1643793521022,1.53258236,2761.5,2760.8,3.92872259]
[1643793521224,1.53258236,2761.6,2760.8,3.92872259]
[1643793521423,1.53258236,2761.5,2760.8,3.92872259]
[1643793521623,1.53258236,2761.4,2760.8,3.934863]
[1643793521823,1.53258236,2761.3,2760.8,3.934863]
[1643793522067,1.53258236,2761.2,2760.8,3.934863]
[1643793522271,0.4809,2761.8,2761.3,0.78727306]
[1643793522468,0.4809,2761.8,2760.8,3.20519438]
[1643793522469,1.53257967,2761.7,2760.8,3.20519438]
[1643793522675,1.53257967,2761.7,2761.3,0.9052]
[1643793523468,1.53257967,2761.7,2761.0,2.48953042]
[1643793523869,1.53257967,2761.7,2761.3,0.90022018]
[1643793524270,1.53257967,2761.7,2761.3,1.80542018]
[1643793525573,1.53257967,2761.7,2761.3,2.19302865]
[1643793530675,1.53257967,2761.7,2761.3,0.9052]
[1643793531075,1.53257967,2761.7,2761.4,0.32076198]
[1643793531678,1.53257967,2761.7,2761.4,2.32056765]
[1643793531881,1.53257967,2761.7,2761.4,0.32076198]
[1643793532076,1.53257967,2761.6,2761.4,0.32076198]
[1643793532280,1.53257967,2761.5,2761.4,0.32076198]
[1643793532681,1.53257967,2762.0,2761.4,0.32076198]
[1643793532886,1.53257967,2762.0,2761.5,1.98820226]
[1643793533082,1.83257967,2762.0,2761.5,1.98820226]
[1643793533320,1.53257967,2761.9,2761.5,1.98820226]
[1643793533518,1.53257967,2761.8,2761.5,1.98820226]
[1643793533719,0.3,2761.8,2761.5,1.30502068]
[1643793533919,1.53257967,2761.7,2761.5,1.30502068]
[1643793534120,1.53257967,2761.7,2761.5,0.90512]
[1643793534820,3.30374137,2762.5,2762.3,2.28038591]
[1643793535023,0.90277955,2762.4,2762.3,0.64577519]
[1643793535221,0.86821398,2762.4,2762.3,0.64577519]
[1643793535619,1.77336398,2762.4,2762.3,0.64577519]
[1643793535820,1.95428398,2762.4,2762.3,0.64577519]
[1643793536019,1.41726347,2762.4,2762.3,0.64577519]
[1643793536220,1.71726347,2762.4,2762.3,0.64577519]
[1643793537674,1.03004949,2762.4,2762.3,0.64577519]
[1643793537874,1.94279723,2762.4,2762.3,0.64577519]
[1643793538080,1.03004949,2762.4,2762.3,0.64577519]
[1643793539575,1.94279723,2762.4,2762.3,0.64577519]
[1643793541021,0.84904949,2762.4,2762.3,0.64577519]
[1643793541221,0.84904949,2762.4,2762.2,0.5804493]
[1643793541222,5.24464901,2762.4,2762.2,0.5804493]
[1643793541422,7.89648764,2762.3,2762.2,0.5804493]
[1643793541623,6.35392,2762.3,2762.2,0.5804493]
[1643793542124,1.70392,2762.3,2762.2,0.5804493]
[1643793544669,2.61998138,2762.3,2762.2,0.5804493]
[1643793546074,1.70392,2762.3,2762.2,0.5804493]
[1643793546275,1.70392,2762.3,2761.1,1.08614]
[1643793546276,0.90526,2761.9,2761.1,1.08614]
[1643793546476,0.9052855,2761.8,2761.1,1.08614]
[1643793546676,1.2052855,2761.8,2761.1,1.08614]
[1643793547879,0.42092362,2761.6,2761.1,1.08614]
[1643793548323,1.62624892,2761.6,2761.1,0.1809]
[1643793549823,2.53157892,2761.6,2761.1,0.1809]
[1643793550827,2.53157892,2761.6,2761.0,0.1809]
[1643793553476,2.53157892,2761.6,2761.0,3.06923446]
[1643793553684,1.62625362,2761.6,2761.0,1.08619]
[1643793554479,0.905271,2761.8,2761.0,3.08327284]
[1643793554683,0.1809,2762.0,2761.5,0.76747338]
[1643793554880,0.4809,2762.0,2761.5,0.76747338]
[1643793555080,1.53257841,2761.9,2761.5,0.76747338]
[1643793555279,1.53257841,2761.9,2761.5,0.6919181]
[1643793555478,1.9014951,2761.9,2761.5,0.6919181]
[1643793555679,1.53257841,2761.8,2761.4,0.90517]
[1643793557125,1.5326018,2761.7,2761.4,0.90517]
[1643793557322,1.5326018,2761.8,2761.4,0.90517]
[1643793557523,1.5326018,2761.7,2761.4,0.90517]
[1643793557722,1.5326018,2761.6,2761.4,0.90517]
[1643793557922,2.21969304,2762.0,2761.4,0.90517]
[1643793558123,1.5326018,2761.9,2761.5,2.07096774]
[1643793558324,0.98709124,2762.1,2761.4,0.90517]
[1643793558325,1.5326018,2761.8,2761.4,0.90517]
[1643793558522,1.5326018,2762.0,2761.4,0.90517]
[1643793558723,1.5326018,2761.9,2761.4,0.90517]
[1643793558927,1.5326018,2761.8,2761.4,0.90517]
[1643793559124,1.5326018,2761.7,2761.4,0.90517]
[1643793559324,1.5326018,2761.6,2761.4,0.90517]
[1643793559573,1.5326018,2761.5,2761.4,0.90517]
[1643793559975,1.5326018,2762.0,2761.4,0.90517]
[1643793560177,1.5326018,2761.9,2761.4,0.90517]
[1643793560376,1.5326018,2761.8,2761.4,0.90517]
[1643793560576,1.5326018,2761.7,2761.4,0.90517]
[1643793560779,1.5326018,2761.6,2761.4,0.90517]
[1643793560977,1.5326018,2762.0,2761.4,0.90517]
[1643793561176,1.5326018,2761.9,2761.4,0.90517]
[1643793561376,0.98709124,2762.1,2761.4,0.90517]
[1643793561377,1.5326018,2761.8,2761.4,0.90517]
[1643793561582,1.5326018,2761.7,2761.4,0.90517]
[1643793561784,1.5326018,2761.6,2761.3,0.90521]
[1643793561986,1.8736786,2761.5,2761.3,0.90521]
[1643793562183,1.5326018,2761.4,2761.2,0.1809]
[1643793562582,1.5326018,2761.3,2761.2,0.1809]
[1643793562782,0.98709124,2762.0,2761.2,0.1809]
[1643793562783,1.5326018,2761.9,2761.2,0.1809]
[1643793563183,1.5326018,2761.9,2761.2,1.08613]
[1643793564235,0.43573423,2761.6,2761.2,1.08613]
[1643793564434,1.5326018,2761.5,2761.2,1.08613]
[1643793565732,1.5326018,2761.5,2761.2,0.90523]
[1643793567387,1.5326018,2761.4,2761.2,0.90523]
[1643793567687,1.5326018,2761.3,2761.2,0.90523]
[1643793568090,0.86799124,2761.9,2761.2,0.90523]
[1643793568287,0.32970444,2761.7,2761.2,0.90523]
[1643793568487,1.53260759,2761.6,2761.2,0.90523]
[1643793570290,0.98815395,2762.0,2761.2,0.90523]
[1643793570490,0.3,2762.0,2761.2,0.90523]
[1643793570689,0.68812486,2762.0,2761.2,0.90523]
[1643793570926,1.53254347,2762.0,2761.2,0.90523]
[1643793571125,2.22066833,2762.0,2761.2,0.90523]
[1643793571330,0.37043971,2761.7,2761.2,0.90523]
[1643793571528,1.53254347,2761.6,2761.2,0.90523]
[1643793572932,1.53254347,2762.0,2761.2,0.90523]
[1643793573131,1.53254347,2761.9,2761.2,0.90523]
[1643793573333,1.53254347,2761.8,2761.2,0.90523]
[1643793573532,1.53254347,2761.7,2761.2,0.90523]
[1643793573732,1.53254347,2761.6,2761.2,0.90523]
[1643793573931,2.22066833,2762.0,2761.2,0.90523]
[1643793574132,0.32408319,2761.6,2761.2,0.90523]
[1643793574331,1.53254347,2761.5,2761.2,0.90523]
[1643793577274,1.53254347,2761.4,2761.2,0.90523]
[1643793577473,1.16902486,2762.1,2761.2,0.90523]
[1643793577674,1.53252203,2762.0,2761.2,0.90523]
[1643793578075,0.33817996,2761.7,2761.2,0.90523]
[1643793578320,1.53252203,2761.6,2761.2,0.90523]
[1643793579626,1.53153044,2761.6,2761.2,0.90523]
[1643793579823,2.0,2761.9,2761.2,0.90523]
[1643793580023,3.16902486,2762.1,2761.2,0.90523]
[1643793581422,0.32535956,2761.7,2761.2,0.90523]
[1643793582071,1.16902486,2762.1,2761.2,0.90523]
[1643793582280,3.027256,2762.1,2761.2,0.90523]
[1643793582677,1.16902486,2762.1,2761.2,0.90523]
[1643793582878,1.16902486,2762.1,2761.4,0.6800362]
[1643793583077,1.16902486,2762.1,2761.4,1.5852262]
[1643793583779,1.16902486,2762.1,2761.4,0.90519]
[1643793583980,0.36598383,2761.7,2761.4,0.90519]
[1643793585823,1.28812486,2762.1,2761.4,0.90519]
[1643793586825,0.42733932,2761.6,2761.4,0.90519]
[1643793587030,1.63491003,2761.3,2761.1,1.24]
[1643793587229,1.63491003,2761.3,2760.8,5.66818]
[1643793587437,1.63491003,2761.3,2760.8,1.81058]
[1643793587629,1.63491003,2761.3,2760.7,0.1809]
[1643793588429,1.63491003,2761.3,2760.8,0.90539]
[1643793599679,1.53268936,2761.2,2760.8,0.90539]
[1643793602731,1.53268936,2761.2,2760.9,0.90526]
[1643793602931,1.53268936,2761.2,2761.0,0.90528]
[1643793605784,1.53268936,2761.2,2761.0,1.27090742]
[1643793606783,1.53268936,2761.2,2761.0,0.90528]
[1643793608435,1.53268936,2761.2,2760.8,0.90539]
[1643793613383,1.53268936,2761.2,2760.6,5.90075601]
[1643793615483,1.53268936,2761.2,2760.7,1.14215312]